bitfinex/quotes_BTCUSD_20240815
["timestamp","ask_amount","ask_price","bid_price","bid_amount"]
[1723758015254,0.139326,57419.0,57413.0,0.139341]
[1723758016171,0.139326,57419.0,57414.0,0.003]
[1723758016405,0.139326,57419.0,57412.0,0.141343]
[1723758016603,0.139329,57418.0,57412.0,0.141343]
[1723758016772,0.139329,57418.0,57414.0,0.001]
[1723758016979,0.417975,57420.0,57414.0,0.003]
[1723758017177,0.17155454,57422.0,57415.0,0.001]
[1723758017178,0.139323,57421.0,57415.0,0.001]
[1723758017380,0.278643,57421.0,57416.0,0.001]
[1723758017741,0.23579871,57425.0,57412.0,0.422029]
[1723758017742,0.00645357,57413.0,57412.0,0.422029]
[1723758017947,0.00645357,57413.0,57412.0,0.418029]
[1723758018362,0.00645357,57413.0,57412.0,0.36431901]
[1723758018832,0.00645357,57413.0,57412.0,0.64300601]
[1723758019170,0.00645357,57413.0,57412.0,0.64500601]
[1723758019579,0.00645357,57413.0,57412.0,0.36431901]
[1723758019779,0.00645357,57413.0,57412.0,0.139343]
[1723758020191,0.00645357,57413.0,57412.0,0.002]
[1723758020394,0.00645357,57413.0,57412.0,0.001]
[1723758020600,0.00645357,57413.0,57412.0,0.002]
[1723758021003,0.00645357,57413.0,57412.0,0.141343]
[1723758021204,0.00645357,57413.0,57412.0,0.139343]
[1723758021437,0.00645357,57413.0,57411.0,0.002]
[1723758021438,0.00645357,57413.0,57411.0,0.141344]
[1723758021607,0.00645357,57413.0,57410.0,0.004]
[1723758022221,0.14579457,57413.0,57407.0,0.139355]
[1723758022434,0.00645357,57413.0,57409.0,0.002]
[1723758022639,0.00645357,57413.0,57407.0,0.139355]
[1723758022640,0.00645357,57413.0,57401.0,0.136]
[1723758022842,0.00645357,57413.0,57406.0,0.002]
[1723758023041,0.278668,57416.0,57408.0,0.13389816]
[1723758023042,0.139338,57415.0,57408.0,0.13389816]
[1723758023312,0.139339,57414.0,57410.0,0.002]
[1723758023459,0.278673,57415.0,57410.0,0.002]
[1723758023678,0.139341,57413.0,57410.0,0.002]
[1723758024075,0.139339,57414.0,57410.0,0.002]
[1723758024279,0.139339,57414.0,57410.0,0.00220968]
[1723758024750,0.139342,57413.0,57410.0,0.00220968]
[1723758024977,0.278668,57416.0,57410.0,0.00220968]
[1723758025222,0.139346,57411.0,57410.0,0.00020968]
[1723758025929,0.41400054,57411.0,57410.0,0.00020968]
[1723758026164,0.97138454,57411.0,57410.0,0.00020968]
[1723758026367,1.25007654,57411.0,57410.0,0.00020968]
[1723758026540,1.41783419,57411.0,57410.0,0.00020968]
[1723758026980,1.46991005,57411.0,57410.0,0.00020968]
[1723758027602,1.4893834,57411.0,57410.0,0.00020968]
[1723758028011,1.56762911,57411.0,57410.0,0.00020968]
[1723758028222,0.139372,57401.0,57395.0,0.142384]
[1723758028432,0.278735,57402.0,57395.0,0.003]
[1723758028604,0.139372,57401.0,57395.0,0.003]
[1723758028817,0.139374,57400.0,57395.0,0.003]
[1723758028997,0.278735,57402.0,57394.0,0.000817]
[1723758028998,0.139376,57399.0,57394.0,0.002817]
[1723758029198,0.139376,57399.0,57395.0,0.002]
[1723758029565,0.139378,57398.0,57395.0,0.002]
[1723758029769,0.05215141,57407.0,57395.0,0.002]
[1723758029770,0.05215141,57407.0,57403.0,0.139363]
[1723758029955,0.10432762,57411.0,57402.0,0.139366]
[1723758029956,0.139352,57409.0,57402.0,0.139366]
[1723758030152,0.139351,57409.0,57402.0,0.139367]
[1723758030379,0.0418043,57409.0,57400.0,0.279745]
[1723758030589,0.0418043,57409.0,57402.0,0.139367]
[1723758030773,0.278692,57411.0,57402.0,0.001]
[1723758030976,0.278687,57412.0,57402.0,0.140367]
[1723758031184,0.05215141,57413.0,57393.0,0.279593]
[1723758031185,0.139369,57402.0,57393.0,0.281593]
[1723758031409,0.56833465,57411.0,57395.0,0.001]
[1723758031547,0.139365,57404.0,57397.0,0.139379]
[1723758031974,0.13937,57401.0,57396.0,0.003]
[1723758032171,0.139368,57402.0,57396.0,0.002]
[1723758032365,0.265868,57402.0,57396.0,0.141382]
[1723758032584,0.265868,57402.0,57393.0,0.000817]
[1723758032585,0.18022192,57401.0,57393.0,0.000817]
[1723758032786,0.18022192,57401.0,57390.0,0.08577727]
[1723758032787,0.13938,57397.0,57391.0,0.139027]
[1723758033008,0.139383,57396.0,57388.0,0.413001]
[1723758033229,0.139383,57396.0,57388.0,0.1394]
[1723758033230,0.14804926,57396.0,57388.0,0.1394]
[1723758033426,0.00866626,57396.0,57389.0,0.139398]
[1723758033631,0.00866626,57396.0,57390.0,0.139396]
[1723758033902,0.139378,57398.0,57390.0,0.139396]
[1723758034077,0.00858345,57395.0,57390.0,0.139396]
[1723758034228,0.139388,57394.0,57385.0,0.387317]
[1723758034433,0.00858345,57394.0,57389.0,0.139398]
[1723758034632,0.00858345,57394.0,57385.0,0.387317]
[1723758034633,0.13939,57393.0,57387.0,0.139403]
[1723758034834,0.1265,57391.0,57382.0,0.01821943]
[1723758035032,0.29805454,57391.0,57382.0,0.01821943]
[1723758035259,0.28738347,57390.0,57382.0,0.01821943]
[1723758035461,0.06281113,57389.0,57382.0,0.01821943]
[1723758035816,0.00857673,57388.0,57384.0,0.13941]
[1723758036168,0.00857673,57387.0,57384.0,0.13941]
[1723758036569,0.00856255,57386.0,57384.0,0.13941]
[1723758036947,0.29805454,57391.0,57382.0,0.01821943]
[1723758036948,0.01279102,57385.0,57382.0,0.01821943]
[1723758037343,0.01279102,57384.0,57382.0,0.01821943]
[1723758037619,0.0139404,57386.0,57382.0,0.01821943]
[1723758037821,0.01279102,57383.0,57382.0,0.01821943]
[1723758038025,0.278807,57388.0,57382.0,0.01821943]
[1723758038225,0.01279965,57383.0,57382.0,0.01821943]
[1723758038426,0.05348187,57383.0,57382.0,0.01821943]
[1723758038766,0.20569552,57383.0,57382.0,0.01821943]
[1723758039640,0.139419,57381.0,57375.0,0.139431]
[1723758039840,0.139419,57381.0,57374.0,0.01822808]
[1723758039841,0.18787165,57381.0,57374.0,0.01822808]
[1723758040051,0.15221202,57380.0,57374.0,0.01822808]
[1723758040272,0.30245454,57379.0,57374.0,0.01822808]
[1723758040447,0.06425422,57378.0,57374.0,0.01822808]
[1723758040686,0.139433,57376.0,57374.0,0.01822808]
[1723758041089,0.01270879,57375.0,57374.0,0.01822808]
[1723758041499,0.139431,57376.0,57374.0,0.01822808]
[1723758041701,0.01271742,57375.0,57374.0,0.01822808]
[1723758041876,0.15215042,57375.0,57374.0,0.01822808]
[1723758042441,0.60257196,57375.0,57374.0,0.01822808]
[1723758042861,0.60230847,57375.0,57374.0,0.01822808]
[1723758043733,0.88117547,57375.0,57374.0,0.01822808]
[1723758043909,1.03098939,57375.0,57374.0,0.01822808]
[1723758044177,0.278884,57372.0,57364.0,0.239459]
[1723758044408,0.278884,57372.0,57366.0,0.01823088]
[1723758044409,0.139446,57370.0,57366.0,0.01823088]
[1723758044615,0.139448,57369.0,57366.0,0.01823088]
[1723758044820,0.01250253,57371.0,57366.0,0.01823088]
[1723758045028,0.139436,57374.0,57367.0,0.139452]
[1723758045234,0.01250253,57368.0,57367.0,0.139452]
[1723758045466,0.278863,57376.0,57364.0,0.46469627]
[1723758045467,0.139435,57374.0,57368.0,0.13945]
[1723758045882,0.139435,57374.0,57364.0,0.378919]
[1723758045883,0.17155454,57373.0,57364.0,0.1]
[1723758046096,0.05242993,57372.0,57367.0,0.139451]
[1723758046313,0.139436,57374.0,57367.0,0.139451]
[1723758046528,0.139438,57373.0,57367.0,0.139451]
[1723758046736,0.139441,57372.0,57365.0,0.139457]
[1723758046910,0.17155454,57371.0,57364.0,0.1]
[1723758047144,0.05189796,57370.0,57364.0,0.1]
[1723758047360,0.139449,57369.0,57364.0,0.1]
[1723758047781,0.13945,57368.0,57364.0,0.1]
[1723758048183,0.139453,57367.0,57364.0,0.1]
[1723758048626,0.1246,57366.0,57364.0,0.1]
[1723758048838,0.139457,57365.0,57364.0,0.1]
[1723758049519,0.1246,57366.0,57364.0,0.1]
[1723758049732,0.0649695,57365.0,57364.0,0.1]
[1723758049935,0.2044265,57365.0,57364.0,0.1]
[1723758050332,0.4833415,57365.0,57364.0,0.1]
[1723758050558,0.49581441,57365.0,57364.0,0.1]
[1723758052401,0.49581441,57365.0,57364.0,0.100821]
[1723758052808,0.88022941,57365.0,57364.0,0.100821]
[1723758053546,0.60131441,57365.0,57364.0,0.100821]
[1723758058358,0.84531441,57365.0,57364.0,0.100821]
[1723758060104,1.12422941,57365.0,57364.0,0.100821]
[1723758060510,0.84531441,57365.0,57364.0,0.100821]
[1723758060743,1.29578395,57365.0,57364.0,0.100821]
[1723758061156,1.12422941,57365.0,57364.0,0.100821]
[1723758061413,0.84531441,57365.0,57364.0,0.100821]
[1723758061843,1.12422941,57365.0,57364.0,0.100821]
[1723758066463,0.278921,57364.0,57352.0,0.00970214]
[1723758066669,0.278921,57364.0,57303.0,0.09663385]
[1723758066670,1.395501,57327.0,57303.0,0.09663385]
[1723758066884,1.395501,57327.0,57270.0,0.03714806]
[1723758066885,0.279305,57285.0,57270.0,0.03714806]
[1723758067096,0.279305,57285.0,57235.0,0.04732791]
[1723758067097,0.002,57263.0,57220.0,0.15554806]
[1723758067308,0.1,57276.0,57223.0,0.06998]
[1723758067309,0.279531,57239.0,57223.0,0.06998]
[1723758067512,0.0279531,57238.0,57224.0,0.17155454]
[1723758067723,0.139777,57234.0,57224.0,0.17155454]
[1723758067934,0.00994416,57238.0,57224.0,0.17155454]
[1723758068133,0.01691999,57233.0,57221.0,0.08577727]
[1723758068341,0.51466362,57241.0,57220.0,0.1184]
[1723758068342,0.61466362,57241.0,57220.0,0.1184]
[1723758068540,0.61466362,57241.0,57220.0,0.25821]
[1723758068750,0.61466362,57241.0,57221.0,0.139808]
[1723758068751,0.139765,57239.0,57221.0,0.139808]
[1723758068964,0.0096505,57240.0,57220.0,0.258211]
[1723758068965,0.17155454,57238.0,57220.0,0.258211]
[1723758069224,0.17978087,57238.0,57221.0,0.139808]
[1723758069402,0.09110174,57237.0,57221.0,0.17155454]
[1723758069812,0.00822199,57236.0,57221.0,0.17155454]
[1723758070219,0.00822199,57236.0,57224.0,0.139799]
[1723758070427,0.01815436,57236.0,57222.0,0.279607]
[1723758070659,0.01815436,57236.0,57223.0,0.17155454]
[1723758070660,0.00822199,57236.0,57223.0,0.17155454]
[1723758070863,0.0147987,57236.0,57227.0,0.139793]
[1723758071074,0.00814194,57235.0,57224.0,0.419399]
[1723758071275,0.82597816,57241.0,57227.0,0.139793]
[1723758071487,0.0081469,57234.0,57227.0,0.139793]
[1723758071687,0.17377049,57240.0,57228.0,0.13979]
[1723758071915,0.82597816,57241.0,57223.0,0.17155454]
[1723758071916,0.68621816,57241.0,57223.0,0.17155454]
[1723758072120,0.46526827,57247.0,57236.0,0.139771]
[1723758072121,0.51466362,57246.0,57236.0,0.139771]
[1723758072317,0.56119045,57246.0,57236.0,0.139772]
[1723758072523,0.56119045,57246.0,57233.0,0.279558]
[1723758072728,0.56119045,57246.0,57229.0,0.17155454]
[1723758072924,0.56119045,57246.0,57239.0,0.139764]
[1723758073124,0.56119045,57246.0,57234.0,0.279553]
[1723758073125,0.56119045,57246.0,57240.0,0.139761]
[1723758073329,0.56119045,57246.0,57237.0,0.279534]
[1723758073330,0.08577727,57247.0,57241.0,0.1168]
[1723758073530,0.08577727,57247.0,57244.0,0.139751]
[1723758073735,0.08577727,57247.0,57242.0,0.279514]
[1723758073932,0.08577727,57247.0,57245.0,0.139749]
[1723758074143,0.08577727,57254.0,57246.0,0.139747]
[1723758074360,0.08577727,57254.0,57244.0,0.139752]
[1723758074361,0.31128554,57253.0,57244.0,0.139752]
[1723758074552,0.17155454,57253.0,57245.0,0.139749]
[1723758074757,0.45101654,57253.0,57241.0,0.396317]
[1723758074965,0.45101654,57253.0,57244.0,0.139751]
[1723758075171,0.17155454,57253.0,57245.0,0.139749]
[1723758075395,0.139734,57252.0,57242.0,0.279514]
[1723758075593,0.31128854,57252.0,57244.0,0.139752]
[1723758075803,0.17155454,57252.0,57244.0,0.139752]
[1723758076012,0.17155454,57252.0,57243.0,0.139753]
[1723758076224,0.17155454,57251.0,57242.0,0.279513]
[1723758076439,0.31128954,57251.0,57243.0,0.139753]
[1723758076644,0.139738,57250.0,57243.0,0.139753]
[1723758076841,0.139738,57250.0,57241.0,0.1168]
[1723758076842,0.139738,57250.0,57244.0,0.000821]
[1723758077053,0.279461,57253.0,57245.0,0.139749]
[1723758077054,0.13973,57253.0,57245.0,0.139749]
[1723758077252,0.17155454,57253.0,57245.0,0.139749]
[1723758077428,0.139733,57252.0,57245.0,0.139749]
[1723758077627,0.139733,57252.0,57244.0,0.000821]
[1723758077843,0.139733,57252.0,57245.0,0.139749]
[1723758078057,0.139733,57252.0,57244.0,0.000821]
[1723758078256,0.139735,57251.0,57244.0,0.140573]
[1723758078823,0.139735,57251.0,57244.0,0.000821]
[1723758079032,0.139735,57251.0,57244.0,0.140573]
[1723758079282,0.139733,57252.0,57244.0,0.140573]
[1723758079490,0.17155454,57253.0,57244.0,0.140573]
[1723758079491,0.139735,57251.0,57244.0,0.140573]
[1723758079894,0.17155454,57253.0,57244.0,0.140573]
[1723758080105,0.139735,57251.0,57244.0,0.140573]
[1723758080374,0.139735,57251.0,57244.0,0.000821]
[1723758080600,0.17155454,57253.0,57244.0,0.000821]
[1723758080818,0.139736,57251.0,57244.0,0.000821]
[1723758081053,0.139739,57250.0,57244.0,0.000821]
[1723758082113,0.279466,57252.0,57244.0,0.140573]
[1723758082553,0.17155454,57253.0,57244.0,0.140572]
[1723758082758,0.17155454,57253.0,57244.0,0.000821]
[1723758082976,0.139736,57251.0,57244.0,0.140571]
[1723758083188,0.17155454,57253.0,57244.0,0.000821]
[1723758083389,0.139735,57251.0,57244.0,0.140572]
[1723758084042,0.139738,57250.0,57244.0,0.000821]
[1723758084502,0.139736,57251.0,57244.0,0.140572]
[1723758084929,0.139738,57250.0,57244.0,0.000821]
[1723758085147,0.139738,57250.0,57244.0,0.140573]
[1723758085335,0.279463,57253.0,57244.0,0.140573]
[1723758085577,0.139736,57251.0,57244.0,0.140573]
[1723758087108,0.139738,57250.0,57244.0,0.000821]
[1723758087318,0.00712726,57249.0,57244.0,0.000821]
[1723758088415,0.139736,57251.0,57244.0,0.000821]
[1723758088639,0.279463,57253.0,57244.0,0.000821]
[1723758088850,0.139737,57251.0,57244.0,0.140573]
[1723758089262,0.01754187,57250.0,57244.0,0.140573]
[1723758089489,0.01754187,57249.0,57244.0,0.140573]
[1723758089716,0.01754187,57248.0,57245.0,0.139749]
[1723758089929,0.01754187,57247.0,57244.0,0.000821]
[1723758090142,0.01754187,57246.0,57244.0,0.140572]
[1723758090354,0.01754187,57245.0,57244.0,0.140572]
[1723758090573,0.01754187,57245.0,57244.0,0.420077]
[1723758093898,0.01754187,57245.0,57244.0,0.699582]
[1723758095064,0.01754187,57245.0,57244.0,0.420077]
[1723758096709,0.01754187,57245.0,57244.0,0.140572]
[1723758096910,0.0009053,57253.0,57244.0,0.140572]
[1723758096911,0.0009053,57253.0,57245.0,0.139747]
[1723758097112,0.18907301,57252.0,57245.0,0.139747]
[1723758097316,0.01716392,57251.0,57245.0,0.139747]
[1723758097554,0.04934001,57250.0,57245.0,0.139747]
[1723758097886,0.04934001,57250.0,57244.0,0.280326]
[1723758097887,0.04934001,57249.0,57246.0,0.139747]
[1723758098004,0.04934001,57248.0,57244.0,0.140571]
[1723758098202,0.04934001,57247.0,57244.0,0.140571]
[1723758098424,0.04934001,57246.0,57244.0,0.140571]
[1723758098628,0.04934001,57245.0,57244.0,0.140571]
[1723758099057,0.04934001,57245.0,57244.0,0.140573]
[1723758099459,0.04934001,57245.0,57244.0,0.000821]
[1723758099660,0.04934001,57245.0,57244.0,0.140573]
[1723758100113,0.04934001,57245.0,57244.0,0.000821]
[1723758100316,0.04934001,57245.0,57244.0,0.140573]
[1723758100455,0.05617539,57245.0,57244.0,0.000821]
[1723758100652,0.05617539,57245.0,57244.0,0.140573]
[1723758101699,0.05617539,57245.0,57244.0,0.123573]
[1723758101857,0.05617539,57245.0,57244.0,0.139752]
[1723758103503,0.05617539,57245.0,57242.0,0.28943187]
[1723758103721,0.05617539,57244.0,57243.0,0.139754]
[1723758107508,0.05617499,57244.0,57243.0,0.139754]
[1723758108743,0.05617499,57244.0,57242.0,0.00991787]
[1723758108899,0.05617499,57243.0,57242.0,0.14967387]
[1723758109107,0.05617499,57243.0,57242.0,0.162756]
[1723758110946,0.06998,57247.0,57242.0,0.162756]
[1723758111125,0.12839441,57246.0,57243.0,0.139755]
[1723758111322,0.02397018,57245.0,57243.0,0.139755]
[1723758111645,0.05612558,57244.0,57243.0,0.139755]
[1723758111843,0.12839291,57244.0,57243.0,0.139755]
[1723758112409,0.43419552,57244.0,57243.0,0.139755]
[1723758112624,0.43510082,57244.0,57243.0,0.139755]
[1723758114512,0.36283349,57244.0,57243.0,0.139755]
[1723758115313,0.30670791,57244.0,57243.0,0.139755]
[1723758115510,0.36280469,57244.0,57243.0,0.139755]
[1723758116414,0.33066127,57244.0,57243.0,0.139755]
[1723758116614,0.36280469,57244.0,57243.0,0.139755]
[1723758117395,0.52012516,57244.0,57242.0,0.023823]
[1723758117637,0.52012516,57244.0,57242.0,0.14058]
[1723758117638,0.36189939,57243.0,57242.0,0.14058]
[1723758117841,0.32975597,57243.0,57242.0,0.16358]
[1723758118435,0.48707644,57243.0,57242.0,0.16358]
[1723758119252,0.32975597,57243.0,57242.0,0.16358]
[1723758119653,0.32975202,57243.0,57242.0,0.16358]
[1723758120072,0.48707249,57243.0,57242.0,0.14058]
[1723758120292,0.48707249,57243.0,57242.0,0.000823]
[1723758121141,0.48707249,57243.0,57242.0,0.14058]
[1723758121516,0.32975202,57243.0,57242.0,0.14058]
[1723758123463,0.30580261,57243.0,57242.0,0.420095]
[1723758123632,0.30580261,57243.0,57242.0,0.557095]
[1723758123633,0.32975208,57243.0,57242.0,0.557095]
[1723758123973,0.32975208,57243.0,57242.0,0.27758]
[1723758125072,0.32975208,57243.0,57242.0,0.557095]
[1723758125253,0.11171954,57243.0,57242.0,0.557095]
[1723758125597,0.13795133,57243.0,57242.0,0.557095]
[1723758125827,0.15508707,57243.0,57242.0,0.557095]
[1723758125973,0.45407428,57243.0,57242.0,0.557095]
[1723758126174,0.44375297,57243.0,57242.0,0.557095]
[1723758128936,0.31261537,57243.0,57242.0,0.557095]
[1723758129295,0.00681276,57243.0,57242.0,0.557095]
[1723758129495,0.00681276,57243.0,57242.0,0.55661871]
[1723758129722,0.11169452,57243.0,57242.0,0.55661871]
[1723758129918,0.13790946,57243.0,57242.0,1.00768825]
[1723758130242,0.42128946,57243.0,57242.0,1.03068825]
[1723758130448,0.31640819,57243.0,57242.0,1.03068825]
[1723758130858,0.00681276,57243.0,57242.0,1.14338825]
[1723758131013,0.00681276,57243.0,57242.0,1.42290325]
[1723758131220,0.05924025,57243.0,57242.0,1.42290325]
[1723758131979,0.2330967,57248.0,57242.0,1.42290325]
[1723758131980,0.07864049,57257.0,57247.0,0.001]
[1723758132190,0.13106748,57267.0,57247.0,0.001]
[1723758132191,0.0524182,57265.0,57264.0,0.698517]
[1723758132400,0.13106748,57284.0,57279.0,0.419001]
[1723758132401,0.56708182,57280.0,57279.0,0.419001]
[1723758132672,0.0524182,57287.0,57280.0,0.023]
[1723758132872,0.23306748,57294.0,57290.0,0.41892]
[1723758132873,0.0524182,57293.0,57290.0,0.41892]
[1723758133069,0.102,57294.0,57290.0,0.45501798]
[1723758133206,0.102,57294.0,57290.0,0.41892]
[1723758134045,0.102,57294.0,57290.0,0.6982]
[1723758134941,0.102,57294.0,57290.0,0.41892]
[1723758135165,0.102,57294.0,57290.0,0.6982]
[1723758135546,0.102,57294.0,57290.0,0.8459]
[1723758135749,0.102,57294.0,57290.0,0.9459]
[1723758136242,0.102,57294.0,57290.0,0.8459]
[1723758137246,0.1104,57291.0,57290.0,0.8459]
[1723758146689,0.1104,57291.0,57290.0,0.6982]
[1723758147163,0.1113053,57291.0,57290.0,0.6982]
[1723758147586,0.1113053,57291.0,57290.0,0.13964]
[1723758147813,0.1113053,57291.0,57290.0,0.41892]
[1723758148029,0.1113053,57291.0,57290.0,0.13964]
[1723758148159,0.009053,57302.0,57301.0,0.254613]
[1723758148358,0.009053,57302.0,57301.0,1.26246011]
[1723758148560,0.009053,57302.0,57301.0,2.0277693]
[1723758148781,0.009053,57302.0,57301.0,2.25456304]
[1723758149186,0.009053,57302.0,57301.0,2.20014111]
[1723758149385,0.009053,57302.0,57301.0,2.17467981]
[1723758150412,0.009053,57302.0,57288.0,0.114]
[1723758150619,0.139616,57300.0,57289.0,0.17155454]
[1723758150821,0.009053,57302.0,57287.0,0.1436]
[1723758151023,0.009053,57302.0,57290.0,0.139639]
[1723758151244,0.009053,57302.0,57287.0,0.31515454]
[1723758151245,0.139626,57296.0,57287.0,0.31515454]
[1723758151520,0.27924,57299.0,57287.0,0.31515454]
[1723758151698,0.287027,57296.0,57290.0,0.139639]
[1723758151903,0.401627,57296.0,57290.0,0.139639]
[1723758152524,0.262,57296.0,57290.0,0.139639]
[1723758153154,0.262,57296.0,57287.0,0.17155454]
[1723758153358,0.262,57296.0,57291.0,0.139637]
[1723758154319,0.401625,57296.0,57291.0,0.139637]
[1723758154520,0.262,57296.0,57291.0,0.139637]
[1723758155126,0.503626,57296.0,57289.0,0.27923075]
[1723758155360,0.503626,57296.0,57290.0,0.139638]
[1723758155566,0.364,57296.0,57291.0,0.139637]
[1723758155971,0.503626,57296.0,57290.0,0.139639]
[1723758156871,0.139634,57293.0,57287.0,0.139647]
[1723758158206,0.139635,57292.0,57286.0,0.139649]
[1723758158429,0.139635,57292.0,57284.0,0.279308]
[1723758158430,0.139639,57291.0,57285.0,0.139651]
[1723758159115,0.102,57292.0,57282.0,0.279318]
[1723758159338,0.1942526,57292.0,57285.0,0.139651]
[1723758159573,0.279278,57291.0,57283.0,0.139655]
[1723758159798,0.102,57292.0,57282.0,0.279318]
[1723758160026,0.139641,57290.0,57284.0,0.139653]
[1723758160246,0.139641,57290.0,57282.0,0.279318]
[1723758160247,0.139645,57288.0,57282.0,0.139658]
[1723758160492,0.13965,57286.0,57280.0,0.139663]
[1723758160739,0.1474,57285.0,57276.0,0.279347]
[1723758160968,0.1474,57285.0,57273.0,0.1]
[1723758160969,0.1146,57282.0,57273.0,0.1]
[1723758161196,0.25426,57282.0,57277.0,0.139671]
[1723758161422,0.1146,57282.0,57275.0,0.139674]
[1723758161650,0.1146,57282.0,57273.0,0.45091354]
[1723758161651,0.20092899,57282.0,57276.0,0.139673]
[1723758161907,0.34058899,57282.0,57276.0,0.139673]
[1723758162123,0.34058899,57282.0,57273.0,0.17155454]
[1723758162124,0.139665,57280.0,57275.0,0.139676]
[1723758162559,0.418988,57281.0,57275.0,0.139676]
[1723758162781,0.139663,57281.0,57275.0,0.139676]
[1723758163050,0.21202729,57281.0,57275.0,0.139676]
[1723758163507,0.13967,57278.0,57272.0,0.139681]
[1723758163707,0.139668,57279.0,57273.0,0.139681]
[1723758164596,0.139668,57279.0,57274.0,0.139679]
[1723758165530,0.139664,57280.0,57273.0,0.279362]
[1723758165731,0.139664,57280.0,57264.0,0.13678253]
[1723758165732,0.1413928,57280.0,57264.0,0.13678253]
[1723758165933,0.13967,57278.0,57272.0,0.139682]
[1723758166138,0.1413928,57280.0,57272.0,0.139682]
[1723758166139,0.139672,57277.0,57272.0,0.139682]
[1723758166338,0.139672,57277.0,57270.0,0.279375]
[1723758166339,0.139672,57277.0,57271.0,0.139686]
[1723758166775,0.139675,57276.0,57271.0,0.139686]
[1723758167141,0.1413928,57280.0,57262.0,0.1428]
[1723758167343,0.281089,57270.0,57264.0,0.139702]
[1723758167720,0.139696,57268.0,57262.0,0.139707]
[1723758168042,0.1397,57266.0,57260.0,0.139712]
[1723758168259,0.102,57266.0,57261.0,0.13971]
[1723758168786,0.102,57266.0,57259.0,0.139714]
[1723758168995,0.2417,57266.0,57258.0,0.28807396]
[1723758169190,0.2417,57266.0,57261.0,0.13971]
[1723758169762,0.102,57266.0,57259.0,0.27943]
[1723758169968,0.139701,57265.0,57260.0,0.139712]
[1723758170167,0.2417,57266.0,57260.0,0.139712]
[1723758170370,0.139702,57265.0,57258.0,0.00864196]
[1723758170646,0.139702,57265.0,57258.0,0.28807496]
[1723758170854,0.139702,57265.0,57260.0,0.139713]
[1723758171061,0.251303,57265.0,57259.0,0.139715]
[1723758171252,0.139704,57264.0,57259.0,0.139715]
[1723758171664,0.139704,57264.0,57258.0,0.000823]
[1723758171665,0.139707,57263.0,57258.0,0.140541]
[1723758172201,0.4403064,57265.0,57258.0,0.000823]
[1723758172444,0.139716,57259.0,57258.0,0.000823]
[1723758172644,0.1816296,57259.0,57258.0,0.000823]
[1723758172848,0.80058,57259.0,57258.0,0.000823]
[1723758173003,0.94578,57259.0,57258.0,0.000823]
[1723758173828,0.94578,57259.0,57242.0,0.11044671]
[1723758173829,0.1422,57258.0,57242.0,0.00034671]
[1723758174031,0.139755,57243.0,57242.0,0.00034671]
[1723758174233,0.241755,57243.0,57242.0,0.00034671]
[1723758174825,0.352055,57243.0,57242.0,0.00034671]
[1723758175019,0.2123,57243.0,57242.0,0.00034671]
[1723758175456,0.911075,57243.0,57242.0,0.00034671]
[1723758175712,1.0164025,57243.0,57242.0,0.00034671]
[1723758176413,1.18795704,57243.0,57242.0,0.00034671]
[1723758178235,1.46746704,57243.0,57242.0,0.00034671]
[1723758179817,0.139778,57234.0,57229.0,0.51466362]
[1723758180058,0.1387,57232.0,57229.0,0.139788]
[1723758180296,0.1387,57232.0,57227.0,0.279587]
[1723758180511,0.1387,57232.0,57229.0,0.139789]
[1723758180763,0.1907244,57232.0,57227.0,0.279587]
[1723758180990,0.1907244,57232.0,57228.0,0.139791]
[1723758182375,0.1387,57232.0,57228.0,0.139791]
[1723758183897,0.1387,57232.0,57227.0,0.139793]
[1723758184311,0.1387,57232.0,57228.0,0.139791]
[1723758184742,0.278482,57232.0,57227.0,0.139793]
[1723758184954,0.102,57231.0,57228.0,0.000822]
[1723758186256,0.102,57231.0,57230.0,0.399586]
[1723758186463,0.102,57231.0,57230.0,0.2598]
[1723758186668,0.102,57231.0,57230.0,0.288086]
[1723758187098,0.102,57231.0,57228.0,0.000822]
[1723758187306,0.102,57231.0,57229.0,0.139788]
[1723758188692,0.102,57231.0,57230.0,0.139786]
[1723758188912,0.102,57231.0,57228.0,0.140611]
[1723758189137,0.102,57231.0,57229.0,0.139789]
[1723758190199,0.102,57231.0,57228.0,0.000822]
[1723758190413,0.102,57231.0,57228.0,0.140613]
[1723758190803,0.102,57232.0,57228.0,0.140613]
[1723758191411,0.102,57232.0,57229.0,0.139789]
[1723758191612,0.102,57232.0,57228.0,0.140613]
[1723758192740,0.241782,57232.0,57228.0,0.000822]
[1723758193930,0.241782,57232.0,57228.0,0.140613]
[1723758194800,0.102,57232.0,57228.0,0.140613]
[1723758195212,0.102,57232.0,57229.0,0.139788]
[1723758195436,0.102,57232.0,57228.0,0.140613]
[1723758198373,0.102,57232.0,57229.0,0.139788]
[1723758202316,0.102,57232.0,57228.0,0.000822]
[1723758202464,0.102,57232.0,57228.0,0.280401]
[1723758202673,0.102,57232.0,57231.0,0.139784]
[1723758202881,0.102,57237.0,57232.0,0.139779]
[1723758203050,0.24177,57237.0,57232.0,0.139779]
[1723758203445,0.139772,57236.0,57232.0,0.139779]
[1723758203846,0.24177,57237.0,57232.0,0.139779]
[1723758204565,0.24155974,57237.0,57232.0,0.139779]
[1723758205376,0.24155974,57237.0,57233.0,0.139779]
[1723758206460,0.10178974,57237.0,57231.0,0.279566]
[1723758206684,0.24155974,57237.0,57232.0,0.139781]
[1723758207089,0.139772,57236.0,57232.0,0.139781]
[1723758207820,0.24155874,57237.0,57232.0,0.139781]
[1723758207957,0.10178974,57237.0,57232.0,0.139781]
[1723758208167,0.24155974,57237.0,57232.0,0.139781]
[1723758208607,0.10158974,57236.0,57232.0,0.139781]
[1723758209166,0.10158974,57236.0,57233.0,0.139778]
[1723758209572,0.10158974,57236.0,57232.0,0.139781]
[1723758211235,0.10158974,57236.0,57233.0,0.139779]
[1723758214396,0.10158974,57236.0,57234.0,0.139776]
[1723758214806,0.1738808,57235.0,57234.0,0.139776]